Cogmind - Beta 13 @@@ ROGUE MODE // 2024.05.13 @ 23:08:44 Player: dp-fld Result: Destroyed by as-77292 with Assembled Heavy Rifle Performance ------------- Evolutions (0) 0 Regions Visited (4) 800 Robots Destroyed (23) 115 Value Destroyed (512) 512 Prototype IDs (0) 0 Alien Tech Used (0) 0 Bonus (0) 0 TOTAL SCORE: 1427 Bonus ------- None Cogmind --------- Core Integrity 0/250 Matter 271/300 Energy 98/100 System Corruption 13% Temperature Cool (0) Movement Core (50) Location -9/Mines Parts ------- > --- POWER (1) -------- (None) > --- PROPULSION (2) --- (None) > --- UTILITY (2) ------ (None) > --- WEAPON (2) ------- (None) > --- INVENTORY (5) ---- Light Treads Compact Battery (200) Trap Scanner Tractor Beam Datajack Peak State ------------ > --- POWER ------------ Reinforced Ion Engine > --- PROPULSION ------- Light Treads Advanced Treads > --- UTILITY ---------- High-capacity Storage Unit Light Armor Plating > --- WEAPON ----------- Light Assault Rifle Shock Bomb Launcher > --- INVENTORY -------- Ion Engine Light Treads Light Treads Light Treads Light Treads Light Treads Huge Storage Unit Compact Battery Trap Scanner Visual Processing Unit Sensor Array Signal Interpreter Improved Terrain Scanner Utility Shielding Utility Shielding Tractor Beam Improved Trap Extractor Small Laser Datajack Hammer [Rating: 15] Favorites ----------- Power Light Ion Engine Engine Light Ion Engine Propulsion Light Treads Treads Light Treads Leg Aluminum Leg Wheel Wheel Utility Utility Shielding Storage High-capacity Storage Unit Protection Utility Shielding Weapon Light Assault Rifle Energy Gun Small Laser Ballistic Gun Light Assault Rifle Launcher Shock Bomb Launcher Build | -11 -10 -10 -10 -9 ------- Run | Yrd Mat Min Exi Min Slots Evolved . | . . . . . Power . | . . . . . Propulsion . | . . . . . Utility . | . . . . . Weapon . | . . . . . Parts Attached 22 | . 17 1 . 4 Power 5 | . 4 . . 1 Engine 5 | . 4 . . 1 Core . | . . . . . Reactor . | . . . . . Propulsion 6 | . 5 1 . . Treads 4 | . 3 1 . . Leg . | . . . . . Wheel 2 | . 2 . . . Hover . | . . . . . Flight . | . . . . . Utility 5 | . 4 . . 1 Device . | . . . . . Storage 2 | . 2 . . . Processor . | . . . . . Hackware . | . . . . . Protection 3 | . 2 . . 1 Artifact . | . . . . . Weapon 6 | . 4 . . 2 Energy Gun 2 | . 1 . . 1 Energy Cannon . | . . . . . Ballistic Gun 3 | . 3 . . . Ballistic Cannon . | . . . . . Launcher 1 | . . . . 1 Special Weapon . | . . . . . Impact Weapon . | . . . . . Slashing Weapon . | . . . . . Piercing Weapon . | . . . . . Special Melee Weapon . | . . . . . Unidentified Prototypes . | . . . . . Parts Lost 8 | . 2 . . 6 Power . | . . . . . Propulsion 3 | . 1 . . 2 Utility 1 | . . . . 1 Weapon 4 | . 1 . . 3 Highest Loss Streak 5 | . 1 . . 5 To Critical Strikes . | . . . . . Average Slot Usage (%) 98 | . 97 100 100 95 Engine 14 | . 14 14 14 14 Treads 25 | . 22 28 28 26 Leg 2 | . 3 . . . Storage 14 | . 14 14 14 14 Protection 12 | . 12 14 14 12 Ballistic Gun 26 | . 26 28 28 18 Naked Turns 1 | . . . . 1 Heaviest Build 56 | 12 46 46 46 56 Greatest Support 42 | 20 40 42 42 42 Greatest Overweight (x) 2 | . 1 1 1 2 Average Overweight (x) . | . . 1 1 . Largest Inventory Capacity 20 | 8 20 20 20 20 Average Capacity 15 | 8 11 20 20 19 Most Carried 20 | 6 16 20 20 20 Average Carried 13 | 6 8 18 20 19 Final Capacity 20 | 8 20 20 20 5 Final Carried 20 | 6 16 20 20 5 Class Distribution -------------------- 97% | Mutant Dominant Class ---------------- Mutant | -10/Materials Mutant | -10/Mines Mutant | -10/Exiles Mutant | -9/Mines Resources | -11 -10 -10 -10 -9 ----------- Run | Yrd Mat Min Exi Min Matter Collected 672 | 200 364 . . 108 Remotely . | . . . . . Salvage Created 882 | . 671 . . 211 Parts 53 | . 47 . . 6 Haulers Intercepted 2 | . 2 . . . Recyclers Shooed 2 | . 2 . . . Parts Field Recycled . | . . . . . Retrieved Matter . | . . . . . Parts Self-Destructed . | . . . . . Prevented . | . . . . . Kills | -11 -10 -10 -10 -9 ------- Run | Yrd Mat Min Exi Min Combat Hostiles Destroyed 25 | . 16 . . 9 Guns 19 | . 16 . . 3 AOE 6 | . . . . 6 Classes Destroyed 8 | . 6 . . 2 Hauler 2 | . 2 . . . Recycler 1 | . 1 . . . Operator 1 | . 1 . . . Watcher 1 | . 1 . . . Swarmer 6 | . 6 . . . Grunt 11 | . 10 . . 1 Brawler 1 | . . . . 1 Assembled 7 | . . . . 7 Best Kill Streak 7 | . 4 . . 7 Combat Bots Only 7 | . 4 . . 7 Max Kills in Single Turn 3 | . 1 . . 3 Gunslinging . | . . . . . Exploded 3 | . . . . 3 Melee . | . . . . . Uniques/NPCs Destroyed . | . . . . . Combat | -11 -10 -10 -10 -9 -------- Run | Yrd Mat Min Exi Min Hostile Shots Fired 151 | . 91 . . 60 Missed 29 | . 17 . . 12 Damage Taken 1539 | . 724 30 . 785 Core 261 | . 121 15 . 125 Absorbed by Shields . | . . . . . Redirected to Shielding 9 | . 9 . . . Regen/Repaired (Parts) 67 | . 67 . . . Core Remaining (%) 100 | 100 . . . . Volleys Fired 88 | . 75 . . 13 Largest 2 | . 2 . . 2 Hottest 60 | . 60 . . 60 Shots Fired 171 | . 147 . . 24 Gun 165 | . 147 . . 18 Cannon . | . . . . . Launcher 6 | . . . . 6 Special . | . . . . . Kinetic 161 | . 146 . . 15 Thermal 4 | . 1 . . 3 Explosive . | . . . . . Electromagnetic 6 | . . . . 6 Robot Hit Streak 9 | . 9 . . 6 Robot Miss Streak 4 | . 3 . . 4 Penetration Max . | . . . . . Secondary Targets 2 | . 1 . . 1 Max Gunslinging Chain 1 | . 1 . . 1 Shots Hit Robots 112 | . 98 . . 14 Core Hits 58 | . 40 . . 18 Critical Kills 2 | . 1 . . 1 Critical Parts Destroyed . | . . . . . Critical Strikes 2 | . 1 . . 1 Destroy 2 | . 1 . . 1 Melee Attacks . | . . . . . Impact . | . . . . . Slashing . | . . . . . Piercing . | . . . . . Sneak Attacks . | . . . . . Combat Hostiles . | . . . . . Follow-up Attacks . | . . . . . Damage Inflicted 1323 | . 903 . . 420 Guns 1020 | . 903 . . 117 Cannons . | . . . . . Explosions 303 | . . . . 303 Melee . | . . . . . Ramming . | . . . . . Kinetic 985 | . 903 . . 82 Thermal 35 | . . . . 35 Explosive . | . . . . . Electromagnetic 303 | . . . . 303 Impact . | . . . . . Slashing . | . . . . . Piercing . | . . . . . Highest Corruption 13 | . 3 3 3 13 Average Corruption 3 | . 2 3 3 4 Corruption Purged . | . . . . . Corruption Blocked . | . . . . . Effects 24 | . 5 4 13 2 Message Errors 5 | . . 1 3 1 Matter Fused 8 | . 1 2 4 1 Heat Flow Errors 1 | . . 1 . . Energy Discharges 5 | . . . 5 . Parts Rejected 1 | . 1 . . . Data Loss (minor) 1 | . . . 1 . Data Loss (major) 1 | . 1 . . . Misfires 1 | . 1 . . . Alerts 1 | . 1 . . . Overload Shots . | . . . . . Overflow Damage 5 | . . . . 5 Projectiles . | . . . . . Explosions 5 | . . . . 5 Melee . | . . . . . Knockbacks . | . . . . . Impact . | . . . . . Kinetic . | . . . . . Secondary . | . . . . . Self-Inflicted Damage 76 | . . . . 76 Shots 5 | . . . . 5 Rammed . | . . . . . Targets Rammed . | . . . . . Kicked . | . . . . . Crushed . | . . . . . Highest Temperature 261 | . 24 261 . 101 Average Temperature 37 | . 8 135 . 42 Received Heat Transfer 350 | . 288 . . 62 Siege Activations . | . . . . . Robots Corrupted . | . . . . . Combat Hostiles . | . . . . . Parts Fried . | . . . . . Impact Corruptions . | . . . . . Robots Melted . | . . . . . Combat Hostiles . | . . . . . Parts Melted . | . . . . . Heat Transferred 75 | . . . . 75 Parts Sabotaged . | . . . . . Parts Stolen . | . . . . . Parts Stripped . | . . . . . Power Chain Reactions . | . . . . . Alert | -11 -10 -10 -10 -9 ------- Run | Yrd Mat Min Exi Min Peak Influence 262 | . 262 27 . 70 Initial 27 | . . 27 . . Average 99 | . 118 27 . 28 Maximum Alert Level 1 | . 1 . . . Low Security (%) 97 | 100 97 100 . 100 Level 1 2 | . 2 . . . Level 2 . | . . . . . Level 3 . | . . . . . Level 4 . | . . . . . Level 5 . | . . . . . High Security . | . . . . . Max Security . | . . . . . Squads Dispatched 4 | . 4 . . . Investigation 2 | . 2 . . . Extermination . | . . . . . Reinforcement 2 | . 2 . . . Assault . | . . . . . Garrison . | . . . . . Intercept . | . . . . . Searches Triggered . | . . . . . Construction Impeded . | . . . . . Haulers Reinforced . | . . . . . Active Scanning Responses . | . . . . . Cargo Convoy Interrupts . | . . . . . Stealth | -11 -10 -10 -10 -9 --------- Run | Yrd Mat Min Exi Min Distress Signals 2 | . 2 . . . Communications Jammed . | . . . . . Distress Signals . | . . . . . Times Spotted 41 | . 24 . . 17 Peak Tracking Total 13 | . 4 . . 13 Tactical Retreats 1 | . . . . 1 Traps | -11 -10 -10 -10 -9 ------- Run | Yrd Mat Min Exi Min Traps Triggered 3 | . 3 . . . Indirectly . | . . . . . Trap Hack Attempts . | . . . . . Triggered . | . . . . . Disarmed . | . . . . . Reprogrammed . | . . . . . Reused . | . . . . . Traps Extracted . | . . . . . Installed . | . . . . . Triggered . | . . . . . Machines | -11 -10 -10 -10 -9 ---------- Run | Yrd Mat Min Exi Min Machines Disabled . | . . . . . Max in Single Turn . | . . . . . Machines Repaired . | . . . . . Machines Dismantled . | . . . . . Machines Sabotaged . | . . . . . Overloaded Fab Kills . | . . . . . Hacking | -11 -10 -10 -10 -9 --------- Run | Yrd Mat Min Exi Min Machines Accessed 10 | . 6 1 3 . Terminals 4 | . 4 . . . Fabricators . | . . . . . Repair Stations 1 | . 1 . . . Recycling Units 1 | . 1 . . . Scanalyzers . | . . . . . Garrison Access . | . . . . . Total Hacks 17 | . 13 1 3 . Successful 11 | . 7 1 3 . Failed 6 | . 6 . . . Catastrophic 2 | . 2 . . . Database Lockouts . | . . . . . Manual 7 | . 7 . . . Terminals 9 | . 9 . . . Fabricators . | . . . . . Repair Stations 3 | . 3 . . . Recycling Units 1 | . 1 . . . Scanalyzers . | . . . . . Garrison Access . | . . . . . Terminal Hacks 7 | . 3 1 3 . Record 3 | . . . 3 . Robot Analysis 1 | . 1 . . . Open Door 1 | . . 1 . . Locate Traps 1 | . 1 . . . Hauler Manifests 1 | . 1 . . . Fabricator Hacks . | . . . . . Repair Station Hacks 2 | . 2 . . . Scan Component 1 | . 1 . . . Repair 1 | . 1 . . . Recycling Unit Hacks . | . . . . . Scanalyzer . | . . . . . Garrison Access Hacks . | . . . . . Unauthorized Hacks 2 | . 2 . . . Terminals 1 | . 1 . . . Operators 1 | . 1 . . . Fabricators . | . . . . . Repair Stations . | . . . . . Recycling Units 1 | . 1 . . . Tunnel 1 | . 1 . . . Scanalyzers . | . . . . . Garrison Access . | . . . . . Data Cores Recovered . | . . . . . Used . | . . . . . Hacking Detections 5 | . 5 . . . Full Trace Events 1 | . 1 . . . Feedback Events . | . . . . . Feedback Blocked . | . . . . . Robot Schematics Acquired . | . . . . . Robots Built . | . . . . . Authchips . | . . . . . Time . | . . . . . Total Robot Build Rating . | . . . . . Part Schematics Acquired . | . . . . . Parts Built . | . . . . . Authchips . | . . . . . Time . | . . . . . Total Part Build Rating . | . . . . . Parts Repaired 1 | . 1 . . . Time 13 | . 13 . . . Parts Recycled . | . . . . . Recycled Matter . | . . . . . Retrieved Matter . | . . . . . Retrieved Components . | . . . . . Parts Scanalyzed . | . . . . . Part Schematics Acquired . | . . . . . Parts Damaged . | . . . . . Bothacking | -11 -10 -10 -10 -9 ------------ Run | Yrd Mat Min Exi Min Used RIF Installer . | . . . . . Robots Hacked . | . . . . . Non-combat . | . . . . . Combat . | . . . . . Robot Hacks Applied . | . . . . . Relay Couplers Released . | . . . . . Fabnet Peak Effective % . | . . . . . Robots Rewired . | . . . . . Allies Hacked . | . . . . . Hacks Repelled . | . . . . . Allies | -11 -10 -10 -10 -9 -------- Run | Yrd Mat Min Exi Min Total Allies . | . . . . . Largest Group . | . . . . . Highest-Rated Group . | . . . . . Highest-Rated Ally . | . . . . . Total Orders . | . . . . . Ally Attacks . | . . . . . Total Damage . | . . . . . Kills . | . . . . . Allies Corrupted . | . . . . . Allies Melted . | . . . . . Intel | -11 -10 -10 -10 -9 ------- Run | Yrd Mat Min Exi Min Robot Analysis Total 1 | . 1 . . . Derelict Logs Recovered . | . . . . . Drone Launches . | . . . . . Drone Recoveries . | . . . . . Exploration | -11 -10 -10 -10 -9 ------------- Run | Yrd Mat Min Exi Min Turns Passed 2366 | 5 1323 222 692 124 Spaces Moved 1065 | 5 643 89 299 29 Core 3 | . . . . 3 Treads 899 | . 485 89 299 26 Legs 121 | 5 116 . . . Wheels 42 | . 42 . . . Hover . | . . . . . Flight . | . . . . . Fastest Speed 50 | 120 80 232 232 50 Average Speed 188 | 120 160 234 232 219 Slowest Speed 320 | 120 240 240 232 320 Overloaded Moves . | . . . . . Propulsion Burnouts . | . . . . . Robots Hopped . | . . . . . Cave-ins Triggered . | . . . . . Exploration Rate (%) 37 | 1 77 24 76 10 Regions Visited 4 Branch Regions 3 Pre-discovered Areas 1 | . 1 . . . Known Exits Taken . | . . . . . Unknown Exits Taken 4 | 1 1 1 1 . Scrap Searched . | . . . . . Spaces Dug . | . . . . . Terrain Destroyed . | . . . . . Melee . | . . . . . Projectile . | . . . . . AOE . | . . . . . Terrain Rammed . | . . . . . Walls Destroyed . | . . . . . Machines Disabled . | . . . . . Actions | -11 -10 -10 -10 -9 --------- Run | Yrd Mat Min Exi Min Total 1283 | 4 808 104 298 69 Wait 74 | . 48 8 . 18 Move 1061 | 4 642 88 298 29 Hop . | . . . . . Pick Up 22 | . 15 5 . 2 Fast Attach 6 | . 5 . . 1 Attach 2 | . 1 . . 1 Detach . | . . . . . Swap 14 | . 11 1 . 2 Drop 16 | . 11 2 . 3 Fire 88 | . 75 . . 13 Melee . | . . . . . Ram . | . . . . . Kick . | . . . . . Crush . | . . . . . Escape Stasis . | . . . . . Rewire . | . . . . . Trap . | . . . . . Miscellaneous . | . . . . . Route ------- -11/Scrapyard -10/Materials (discovered 4 exits: [*Mat x3] / *Min) -10/Mines -10/Exiles -9/Mines History --------- Turn | Location | Event 1 | -11/Scrapyard | Discovered new exit (range 3) 6 | -11/Scrapyard | Entered Materials 158 | -10/Materials | Discovered new exit (range 12) 288 | -10/Materials | Discovered new exit (range 15) 317 | -10/Materials | Build established: Mutant 640 | -10/Materials | Discovered new exit (range 4) 939 | -10/Materials | Discovered new exit (range 6) 1128 | -10/Materials | Repaired Lgt. Treads 1329 | -10/Materials | Entered Mines 1333 | -10/Mines | Met a Derelict bent on vengeance 1386 | -10/Mines | Met a Derelict who couldn't figure out how to use a Trap Extractor 1387 | -10/Mines | Core integrity fell below 50% 1542 | -10/Mines | Deemed a non-threat by the Exiles lab entrance 1542 | -10/Mines | Discovered new exit (range 5) 1551 | -10/Mines | Entered Exiles 1551 | -10/Exiles | Found Exiles lab abandoned 2213 | -10/Exiles | Discovered new exit (range 14) 2243 | -10/Exiles | Entered Mines 2339 | -9/Mines | Assembled infested the area 2358 | -9/Mines | System corruption reached 10% 2365 | -9/Mines | Core integrity fell below 20% 2366 | -9/Mines | Released all parts (2) 2367 | -9/Mines | Destroyed by as-77292 with Assembled Heavy Rifle Last Messages --------------- 02344_ as-73729 suffers critical hit (Destroy). 02344_ as-73729 destroyed. 02350_ as-18854 destroyed. 02353_ as-50014 destroyed. 02354_ Lgt. Assault Rifle destroyed. 02354_ System corrupted by crushing effect (+3). 02356_ Destroyed Asb. Hover Unit. 02356_ as-04541 destroyed. 02356_ Lgt. Armor Plating destroyed. 02357_ Adv. Treads destroyed. 02357_ System corrupted by crushing effect (+5). 02358_ as-70235 destroyed. 02358_ as-91839 destroyed. 02358_ as-55834 destroyed. 02360_ Acquired 19 matter. 02360_ Shock Bomb Launcher destroyed. 02363_ Acquired 16 matter. 02365_ Lgt. Treads destroyed. 02366_ Released Hcp. Storage Unit. 02366_ Released Rnf. Ion Engine. Map ----- +----------------------------------------------------+ | | | | | | | | | | | | | | | | | | | ??????????????????????????????????????? | | ??????????????????????????????????????? | | ????????????????????#######??#########? | | ???????????????????## #### #? | | ???????????????????# """ #? | | ???????????????????# ! """ #? | | ???????????????????### #### """ #? | | ?????????????????????## * ##?# #? | | ??????????????????????##! ### #? | | ???????????????????????# ## #? | | ???????????????????????#*!! # #? | | ???????????????????????#!=!/ #########? | | ???????????????????????#!=*[##????????? | | ???????????????????????#!!!##?????????? | | ???????????????????????##!a#??????????? | | ????????????????????????#[%#??????????? | | ????????????????????????#@a#??????????? | | ????????????????????????#aa#??????????? | | ????????????????????????# a ?????????? | | ????????????????????????# % ????????? | | ????????????????????????# #???????? | | ???????????????????????? ##???????? | | ???????????????????????? #????????? | | ????????????????????????# ##????????? | | ????????????????????????# #?????????? | | ???????????????????????? a#?????????? | | ???????????????????????? %##?????????? | | ???????????????????????? ##??????????? | | ???????????????????????? ????????????? | | ?????????????????????????!????????????? | | ?????????????????????????%????????????? | | ????????????????????????? ????????????? | | ??????????????????????????????????????? | | ??????????????????????????????????????? | | ??????????????????????????????????????? | | ??????????????????????????????????????? | | ??????????????????????????????????????? | | ??????????????????????????????????????? | | ??????????????????????????????????????? | | ??????????????????????????????????????? | | ??????????????????????????????????????? | +----------------------------------------------------+ Best States ------------- Heat Dissipation 25 Energy Generation 12 Energy Capacity 265 Matter Stores 300 Matter Capacity 300 Sight Range 16 Terrain Scan Density 10 Armor Coverage 150 Utility Shielding 33 Evasion (%) 55 Recoil Reduction 2 Item Schematics ----------------- None Robot Schematics ------------------ None Fabricated ------------ Nothing Alien Tech Used ----------------- None Achievements -------------- None Challenges ------------ None Game ------ Seed KineticDirtyKit Manual? 0 Play Time 00:18:49 Cumulative 382.1 hours Start 2024.05.13 @ 22:51:11 End 2024.05.13 @ 23:08:44 Sessions 1 Manual Loads 0 Difficulty Rogue Special Mode None Game No. 123 Rogue 84 Adventurer 0 Explorer 39 Win Type - Total 12 Types 10/1/1/0/0/0/0/0/0 Lore% 73 Gallery% 78 Achievement% 67 Wizard Run 0 Options --------- Layout 0 ASCII 1 Keyboard 1 Movement Arrows Keybinds 0 Fullscreen 2 Font 36/Smallcaps Map View 76x50 Zoom Use 0% Tactical HUD 1 Map Filters NONE Filters NONE Steam 1 RUN: 7c5f1d69-8920-452e-8d91-4e1c16755147